Workbook

Sheet Driftsbudsjett
A1: bedriftsnavn
A2: sett årstallet her
A5: Periode | B5: 1 | C5: 2 | D5: 3 | E5: 4 | F5: 5 | G5: 6 | H5: 7 | I5: 8 | J5: 9 | K5: 10 | L5: 11 | M5: 12 | N5: Budsjett (år)
A7: Inntekter | B7: =(B80*B91)+(B81*B92)+B82*B93+B83*B94+B84*B95+B85*B96+B86*B97+B87*B98 -> 3000 | C7: =(C80*C91)+(C81*C92)+C82*C93+C83*C94+C84*C95+C85*C96+C86*C97+C87*C98 -> 3000 | D7: 1000 | E7: 1000 | F7: 1000 | G7: 1000 | H7: 1000 | I7: 1000 | J7: 1000 | K7: 1000 | L7: 1000 | M7: 1000 | N7: =SUM(B7:M7) -> 16000 | O7: Når du fyller ut beregning av salgsinntekter kommer tallene inn her automatisk
A8: Ev andre inntekter | B8: 0 | C8: 0 | D8: 0 | E8: 0 | F8: 0 | G8: 0 | H8: 0 | I8: 0 | J8: 0 | K8: 0 | L8: 0 | M8: 0 | N8: =SUM(B8:M8) -> 0
A9: Sum Driftsinntekter | B9: =SUM(B7:B8) -> 3000 | C9: 3000 | D9: 1000 | E9: 1000 | F9: 1000 | G9: 1000 | H9: 1000 | I9: 1000 | J9: 1000 | K9: 1000 | L9: 1000 | M9: 1000 | N9: =SUM(N7:N8) -> 16000
A10: Variable kostnader:
A11: Produksjonskostnad | B11: =B80*B102+B81*B103+B82*B104+B83*B105+B84*B106+B85*B107+B86*B108+B87*B109 -> 1500 | C11: =C80*C102+C81*C103+C82*C104+C83*C105+C84*C106+C85*C107+C86*C108+C87*C109 -> 1500 | D11: 0 | E11: 0 | F11: 0 | G11: 0 | H11: 0 | I11: 0 | J11: 0 | K11: 0 | L11: 0 | M11: 0 | N11: =SUM(B11:M11) -> 3000 | O11: Når du fyller utberegning av salgsinntekter feltene kommer disse tallene automatisk
A12: Ev andre variable kostnader | B12: 0 | C12: 0 | D12: 0 | E12: 0 | F12: 0 | G12: 0 | H12: 0 | I12: 0 | J12: 0 | K12: 0 | L12: 0 | M12: 0 | N12: =SUM(B12:M12) -> 0
A13: Sum Variable kostnader | B13: =SUM(B11:B12) -> 1500 | C13: =SUM(C11:C12) -> 1500 | D13: 0 | E13: 0 | F13: 0 | G13: 0 | H13: 0 | I13: 0 | J13: 0 | K13: 0 | L13: 0 | M13: 0 | N13: =SUM(N11:N12) -> 3000
A14: Indirekte kostnader:
A15: Lønn - bruk denne linja dersom du starter enkeltpersonforetak | N15: =SUM(B15:M15) -> 0
A16: Lønn - bruk denne linje dersom du starter et AS | B16: 0 | C16: 0 | D16: 0 | E16: 10000 | F16: 20000 | G16: 20000 | H16: 20000 | I16: 20000 | J16: 30000 | K16: 30000 | L16: 30000 | M16: 30000 | N16: =SUM(B16:M16) -> 210000
A17: Arbeidsgiveravgift | B17: =B16*0.141 -> 0 | C17: =C16*0.141 -> 0 | D17: 0 | E17: 1410 | F17: 2820 | G17: 2820 | H17: 2820 | I17: 2820 | J17: 4230 | K17: 4230 | L17: 4230 | M17: 4230 | N17: =SUM(B17:M17) -> 29610 | O17: Disse regnes ut automatisk ut fra lønn i AS fra linja over
A18: Feriepenger | B18: =B16*0.12 -> 0 | C18: =C16*0.12 -> 0 | D18: 0 | E18: 1200 | F18: 2400 | G18: 2400 | H18: 2400 | I18: 2400 | J18: 3600 | K18: 3600 | L18: 3600 | M18: 3600 | N18: =SUM(B18:M18) -> 25200
A19: Pensjonskostnader | B19: =B16*0.02 -> 0 | C19: =C16*0.02 -> 0 | D19: 0 | E19: 200 | F19: 400 | G19: 400 | H19: 400 | I19: 400 | J19: 600 | K19: 600 | L19: 600 | M19: 600 | N19: =SUM(B19:M19) -> 4200
A20: Internett | B20: 200 | C20: 200 | D20: 200 | E20: 200 | F20: 200 | G20: 200 | H20: 200 | I20: 200 | J20: 200 | K20: 200 | L20: 200 | M20: 200 | N20: 2400
A21: Betalingsløsninger | B21: 200 | C21: 200 | D21: 200 | E21: 200 | F21: 200 | G21: 200 | H21: 200 | I21: 200 | J21: 200 | K21: 200 | L21: 200 | M21: 200 | N21: 2400
A22: Kommunale avgifter | B22: 500 | C22: 500 | D22: 500 | E22: 500 | F22: 500 | G22: 500 | H22: 500 | I22: 500 | J22: 500 | K22: 500 | L22: 500 | M22: 500 | N22: 6000
A23: Regnskap | B23: 1000 | C23: 1000 | D23: 1000 | E23: 1000 | F23: 1000 | G23: 1000 | H23: 1000 | I23: 1000 | J23: 1000 | K23: 1000 | L23: 1000 | M23: 1000 | N23: 12000
A24: Forsikringer | B24: 300 | C24: 300 | D24: 300 | E24: 300 | F24: 300 | G24: 300 | H24: 300 | I24: 300 | J24: 300 | K24: 300 | L24: 300 | M24: 300 | N24: 3600
A25: Kontorutstyr/kontorrekvisita | B25: 1000 | C25: 200 | D25: 300 | E25: 300 | F25: 300 | G25: 1000 | H25: 300 | I25: 200 | J25: 200 | K25: 200 | L25: 500 | M25: 500 | N25: 5000
A26: Telefon/elektronisk kommunikasjon | B26: 500 | C26: 500 | D26: 500 | E26: 500 | F26: 500 | G26: 500 | H26: 500 | I26: 500 | J26: 500 | K26: 500 | L26: 500 | M26: 500 | N26: 6000
A27: Andre driftskostnader | B27: 100 | C27: 100 | D27: 100 | E27: 100 | F27: 100 | G27: 100 | H27: 100 | I27: 100 | J27: 100 | K27: 100 | L27: 100 | M27: 100 | N27: 1200
A28: Reisekostnader | B28: 600 | C28: 600 | D28: 600 | E28: 600 | F28: 600 | G28: 600 | H28: 600 | I28: 600 | J28: 600 | K28: 600 | L28: 600 | M28: 600 | N28: 7200
A29: Markedsføring | B29: 200 | C29: 250 | D29: 250 | E29: 250 | F29: 250 | G29: 250 | H29: 250 | I29: 250 | J29: 250 | K29: 250 | L29: 250 | M29: 250 | N29: 2950
B30: 0 | C30: 0 | D30: 0 | E30: 0 | F30: 0 | G30: 0 | H30: 0 | I30: 0 | J30: 0 | K30: 0 | L30: 0 | M30: 0 | N30: 0
B31: 0 | C31: 0 | D31: 0 | E31: 0 | F31: 0 | G31: 0 | H31: 0 | I31: 0 | J31: 0 | K31: 0 | L31: 0 | M31: 0 | N31: 0
B32: 0 | C32: 0 | D32: 0 | E32: 0 | F32: 0 | G32: 0 | H32: 0 | I32: 0 | J32: 0 | K32: 0 | L32: 0 | M32: 0 | N32: 0
B33: 0 | C33: 0 | D33: 0 | E33: 0 | F33: 0 | G33: 0 | H33: 0 | I33: 0 | J33: 0 | K33: 0 | L33: 0 | M33: 0 | N33: 0
B34: 0 | C34: 0 | D34: 0 | E34: 0 | F34: 0 | G34: 0 | H34: 0 | I34: 0 | J34: 0 | K34: 0 | L34: 0 | M34: 0 | N34: 0
B35: 0 | C35: 0 | D35: 0 | E35: 0 | F35: 0 | G35: 0 | H35: 0 | I35: 0 | J35: 0 | K35: 0 | L35: 0 | M35: 0 | N35: 0
B36: 0 | C36: 0 | D36: 0 | E36: 0 | F36: 0 | G36: 0 | H36: 0 | I36: 0 | J36: 0 | K36: 0 | L36: 0 | M36: 0 | N36: 0
B37: 0 | C37: 0 | D37: 0 | E37: 0 | F37: 0 | G37: 0 | H37: 0 | I37: 0 | J37: 0 | K37: 0 | L37: 0 | M37: 0 | N37: 0
A38: Sum indirekte kostnader | B38: =SUM(B15:B37) -> 4600 | C38: =SUM(C15:C37) -> 3850 | D38: 3950 | E38: 16760 | F38: 29570 | G38: 30270 | H38: 29570 | I38: 29470 | J38: 42280 | K38: 42280 | L38: 42580 | M38: 42580 | N38: 317760
A40: DRIFTSRESULTAT | B40: =B9-B13-B38 -> -3100 | C40: -2350 | D40: -2950 | E40: -15760 | F40: -28570 | G40: -29270 | H40: -28570 | I40: -28470 | J40: -41280 | K40: -41280 | L40: -41580 | M40: -41580 | N40: -304760
A42: Fyll inn de hvite feltene med dine tall
A44: Variable kostnader er kostnader som varierer med produksjon og salg. Materialkostnader er en typisk variabel kostnad som stiger når produksjonen stiger
A46: Indirekte kostnader er kostnader som ikke knyttes direkte til produksjonen av en bestemt vare/tjeneste. Indirekte kostnader knytter seg til alle produktene dine. Lønn, strøm, husleie er eksemepl på slike kostnader
A60: Beregning av salgsinntekter
B62: Forklaring
A63: 1 | B63: Fyll inn de fargede feltene - La alle hvite felt stå urørt i fane 2
A64: 2 | B64: Bytt navn på varene i de blå feltene til dine varenavn. Dersom du har færre varer enn det er felter kan du bare la de andre stå urørt
A65: 3 | B65: Fyll inn antall forventede salg pr måned for hver vare.
A66: 4 | B66: Fyll inn salgsprisen for hver enhet uten mva
A67: 5 | B67: Fyll inn forventet produksjonskostnad for hver enhet
A69: Varer (navn)
A70: Vare A
A71: Vare B
A72: Vare C
A73: Vare D
A74: Vare E
A75: Vare F
A76: Vare G
A77: Vare H
A79: Salg i antall
A80: =A70 -> Vare A | B80: 10 | C80: 10 | D80: 10 | E80: 10 | F80: 10 | G80: 10 | H80: 10 | I80: 10 | J80: 10 | K80: 10 | L80: 10 | M80: 10
A81: Vare B | B81: 10 | C81: 10
A82: Vare C | B82: 10 | C82: 10
A83: Vare D
A84: Vare E
A85: Vare F
A86: Vare G
A87: Vare H
A90: Salgspris pr. stk uten mva
A91: =A70 -> Vare A | B91: 100 | C91: 100 | D91: 100 | E91: 100 | F91: 100 | G91: 100 | H91: 100 | I91: 100 | J91: 100 | K91: 100 | L91: 100 | M91: 100
A92: =A71 -> Vare B | B92: 100 | C92: 100
A93: Vare C | B93: 100 | C93: 100
A94: Vare D
A95: Vare E
A96: Vare F
A97: Vare G
A98: Vare H
A101: Produksjonskostnad pr. enhet
A102: =A70 -> Vare A | B102: 50 | C102: 50
A103: =A71 -> Vare B | B103: 50 | C103: 50
A104: Vare C | B104: 50 | C104: 50
A105: Vare D
A106: Vare E
A107: Vare F
A108: Vare G
A109: Vare H
